fUST/lending_fUST_20251102
["ID","MTS","AMOUNT","RATE_DAILY","PERIOD"]
[392834854,1762020645775,-151.0,0.00038032,31]
[392834855,1762020645785,-500.0,0.00038032,8]
[392834856,1762020645795,-499.99,0.00038032,8]
[392834857,1762020645804,-500.0,0.00038032,8]
[392834858,1762020645815,-485.1,0.00038032,8]
[392834859,1762020645824,-500.0,0.00038032,2]
[392834860,1762020645833,-500.0,0.00038032,2]
[392834861,1762020645842,-500.0,0.00038034,8]
[392834862,1762020645851,-338.56548958,0.00038034,8]
[392834863,1762020645861,-500.0,0.00038034,8]
[392834864,1762020645870,-500.0,0.00038034,8]
[392834865,1762020645879,-586.36,0.00038034,8]
[392834866,1762020645888,-793.38,0.00038034,8]
[392834867,1762020645897,-500.0,0.00038034,8]
[392834868,1762020645906,-837.61,0.00038034,3]
[392834869,1762020645915,-580.99,0.00038034,8]
[392834870,1762020645924,-3375.02,0.00038034,8]
[392834871,1762020645933,-500.0,0.00038034,8]
[392834872,1762020645942,-9663.091515,0.00038035,2]
[392834873,1762020645952,-6505.05465412,0.00038035,2]
[392834874,1762020645961,-593.50228375,0.00038058,8]
[392834875,1762020645970,-837.61,0.00038058,3]
[392834876,1762020645979,-500.0,0.00038058,8]
[392834877,1762020645989,-2391.45,0.00038059,8]
[392834879,1762020645998,-151.0,0.00038059,7]
[392834881,1762020646007,-6503.20199834,0.00038106,3]
[392834882,1762020646017,-500.0,0.00038116,8]
[392834884,1762020646030,-500.0,0.00038116,8]
[392834885,1762020646046,-793.38,0.00038116,8]
[392834886,1762020646055,-500.0,0.00038116,8]
[392834887,1762020646064,-580.99,0.00038116,8]
[392834888,1762020646073,-3375.02,0.00038116,8]
[392834889,1762020646082,-6503.20199834,0.00038121,3]
[392834890,1762020646091,-837.61,0.00038121,3]
[392834891,1762020646102,-500.0,0.00038121,8]
[392834892,1762020646112,-500.0,0.00038122,8]
[392834893,1762020646123,-151.0,0.00038122,31]
[392834894,1762020646133,-151.0,0.00038122,31]
[392834895,1762020646144,-178.10745,0.00038122,31]
[392834896,1762020646153,-500.0,0.00038122,2]
[392834897,1762020646162,-19509.605995,0.00038122,3]
[392834898,1762020646171,-979.57586115,0.00038128,5]
[392834899,1762020646182,-151.0,0.0003813,31]
[392834900,1762020646192,-151.0,0.0003813,31]
[392834901,1762020646202,-837.61,0.0003813,3]
[392834902,1762020646212,-500.0,0.0003813,8]
[392834903,1762020646221,-1054.511292,0.0003813,31]
[392834904,1762020646232,-1054.511292,0.0003813,31]
[392834905,1762020646241,-1054.511292,0.0003813,31]
[392834906,1762020646250,-1054.511292,0.0003813,31]
[392834907,1762020646259,-151.0,0.00038131,31]
[392834908,1762020646268,-500.0,0.00038131,8]
[392834909,1762020646277,-500.0,0.00038131,8]
[392834910,1762020646286,-500.0,0.00038131,8]
[392834911,1762020646295,-151.0,0.00038131,31]
[392834912,1762020646304,-428.59,0.00038131,8]
[392834913,1762020646313,-151.0,0.00038131,31]
[392834914,1762020646322,-500.0,0.00038131,8]
[392834915,1762020646331,-500.0,0.00038131,8]
[392834916,1762020646340,-500.0,0.00038131,8]
[392834917,1762020646349,-500.0,0.00038131,8]
[392834918,1762020646358,-500.0,0.00038131,8]
[392834919,1762020646368,-500.27000001,0.00038131,8]
[392834920,1762020646377,-793.38,0.00038131,8]
[392834921,1762020646386,-793.38,0.00038131,8]
[392834922,1762020646396,-793.38,0.00038131,8]
[392834923,1762020646405,-793.38,0.00038131,8]
[392834924,1762020646414,-793.38,0.00038131,8]
[392834925,1762020646424,-793.38,0.00038131,8]
[392834926,1762020646433,-793.38,0.00038131,8]
[392834927,1762020646442,-793.38,0.00038131,8]
[392834928,1762020646452,-793.38,0.00038131,8]
[392834929,1762020646460,-793.38,0.00038131,8]
[392834930,1762020646470,-793.38,0.00038131,8]
[392834931,1762020646479,-793.38,0.00038131,8]
[392834932,1762020646488,-793.59855864,0.00038131,8]
[392834933,1762020646497,-500.0,0.00038131,8]
[392834934,1762020646506,-500.0,0.00038131,8]
[392834935,1762020646515,-500.0,0.00038131,8]
[392834936,1762020646524,-500.0,0.00038131,8]
[392834937,1762020646533,-500.0,0.00038131,8]
[392834939,1762020646543,-500.0,0.00038131,8]
[392834940,1762020646552,-500.0,0.00038131,8]
[392834941,1762020646561,-500.0,0.00038131,8]
[392834942,1762020646570,-500.0,0.00038131,8]
[392834943,1762020646580,-500.0,0.00038131,8]
[392834944,1762020646590,-500.0,0.00038131,8]
[392834945,1762020646599,-486.32255334,0.00038131,8]
[392834946,1762020646608,-837.61,0.00038131,3]
[392834947,1762020646617,-837.61,0.00038131,3]
[392834948,1762020646626,-837.61,0.00038131,3]
[392834949,1762020646635,-837.61,0.00038131,3]
[392834950,1762020646644,-837.61,0.00038131,3]
[392834951,1762020646723,-837.61,0.00038131,3]
[392834952,1762020646732,-837.74,0.00038131,3]
[392834953,1762020646741,-580.99,0.00038131,8]
[392834954,1762020646750,-580.99,0.00038131,8]
[392834955,1762020646758,-580.99,0.00038131,8]
[392834956,1762020646768,-580.99,0.00038131,8]
[392834957,1762020646777,-580.99,0.00038131,8]
[392834958,1762020646786,-580.99,0.00038131,8]
[392834959,1762020646795,-580.99,0.00038131,8]
[392834960,1762020646804,-580.99,0.00038131,8]
[392834961,1762020646814,-580.99,0.00038131,8]
[392834962,1762020646823,-580.99,0.00038131,8]
[392834963,1762020646832,-580.99,0.00038131,8]
[392834965,1762020646841,-580.99,0.00038131,8]
[392834966,1762020646850,-581.16,0.00038131,8]
[392834967,1762020646859,-3375.02,0.00038131,8]
[392834968,1762020646868,-3375.02,0.00038131,8]
[392834969,1762020646878,-3375.02,0.00038131,8]
[392834970,1762020646887,-3375.02,0.00038131,8]
[392834971,1762020646897,-3375.02,0.00038131,8]
[392834972,1762020646906,-3375.02,0.00038131,8]
[392834973,1762020646915,-3375.02,0.00038131,8]
[392834974,1762020646924,-3375.02,0.00038131,8]
[392834975,1762020646933,-3375.02,0.00038131,8]
[392834976,1762020646942,-3375.02,0.00038131,8]
[392834977,1762020646952,-3375.02,0.00038131,8]
[392834978,1762020646960,-3375.02,0.00038131,8]
[392834979,1762020646970,-3375.10129825,0.00038131,8]
[392834980,1762020646979,-361.44,0.00038131,8]
[392834981,1762020646988,-500.0,0.00038131,2]
[392834982,1762020646997,-500.0,0.00038131,2]
[392834983,1762020647006,-500.0,0.00038131,2]
[392834984,1762020647016,-201.22688375,0.00038132,10]
[392834985,1762020647028,-2391.45,0.00038132,8]
[392834986,1762020647037,-2391.45,0.00038132,8]
[392834987,1762020647046,-2391.45,0.00038132,8]
[392834988,1762020647055,-2391.45,0.00038132,8]
[392834989,1762020647064,-2391.45,0.00038132,8]
[392834990,1762020647073,-2391.45,0.00038132,8]
[392834991,1762020647082,-2391.45,0.00038132,8]
[392834992,1762020647091,-2391.45,0.00038132,8]
[392834993,1762020647100,-2391.45,0.00038132,8]
[392834994,1762020647110,-2391.45,0.00038132,8]
[392834995,1762020647119,-2391.45,0.00038132,8]
[392834996,1762020647128,-2391.45,0.00038132,8]
[392834997,1762020647137,-2391.45,0.00038132,8]
[392834998,1762020647147,-2391.45,0.00038132,8]
[392834999,1762020647156,-2391.45,0.00038132,8]
[392835000,1762020647165,-2391.45,0.00038132,8]
[392835001,1762020647175,-2391.45,0.00038132,8]
[392835002,1762020647184,-2391.45,0.00038132,8]
[392835003,1762020647193,-2391.564995,0.00038132,8]
[392835004,1762020647202,-151.0,0.00038132,31]
[392835005,1762020647211,-151.0,0.00038132,31]
[392835006,1762020647221,-151.0,0.00038132,31]
[392835007,1762020647230,-151.0,0.00038132,31]
[392835008,1762020647238,-151.0,0.00038132,31]
[392835009,1762020647248,-151.0,0.00038132,31]
[392835010,1762020647257,-151.0,0.00038132,31]
[392835011,1762020647266,-161.320003,0.00038132,31]
[392835012,1762020647276,-151.0,0.00038132,31]
[392835013,1762020647286,-151.0,0.00038132,31]
[392835014,1762020647296,-151.0,0.00038132,31]
[392835015,1762020647306,-245.523095,0.00038132,31]
[392835016,1762020647315,-151.0,0.00038132,31]
[392835017,1762020647325,-151.0,0.00038132,31]
[392835018,1762020647334,-151.0,0.00038132,31]
[392835019,1762020647342,-151.0,0.00038132,31]
[392835020,1762020647351,-151.0,0.00038132,31]
[392835021,1762020647361,-151.0,0.00038132,31]
[392835022,1762020647371,-1054.511292,0.00038132,31]
[392835023,1762020647381,-1054.511292,0.00038132,31]
[392835024,1762020647391,-1054.511292,0.00038132,31]
[392835025,1762020647401,-1054.51128467,0.00038132,31]
[392835026,1762020647410,-150.5,0.00038134,120]
[392835027,1762020647419,-500.0,0.00038134,8]
[392835028,1762020647428,-472.99027103,0.00038134,8]
[392835029,1762020647437,-500.0,0.00038134,2]
[392835030,1762020647448,-500.0,0.00038134,2]
[392835031,1762020647458,-500.0,0.00038134,2]
[392835032,1762020647467,-500.0,0.00038134,2]
[392835033,1762020647476,-500.0,0.00038134,2]
[392835034,1762020647486,-500.0,0.00038134,2]
[392835035,1762020647495,-500.0,0.00038134,2]
[392835036,1762020647505,-500.0,0.00038134,2]
[392835037,1762020647515,-500.0,0.00038134,2]
[392835038,1762020647524,-500.0,0.00038134,2]
[392835039,1762020647533,-500.0,0.00038134,2]
[392835040,1762020647542,-500.0,0.00038134,2]
[392835041,1762020647552,-500.0,0.00038134,2]
[392835042,1762020647562,-321.61,0.00038134,2]
[392835043,1762020647571,-151.0,0.00038135,31]
[392835044,1762020647581,-151.0,0.00038135,31]
[392835045,1762020647590,-151.0,0.00038135,31]
[392835046,1762020647599,-151.0,0.00038135,31]
[392835047,1762020647608,-151.0,0.00038135,31]
[392835048,1762020647618,-151.0,0.00038135,5]
[392835049,1762020647628,-151.0,0.00038135,5]
[392835050,1762020647637,-500.0,0.00038135,5]
[392835051,1762020647646,-151.0,0.00038135,31]
[392835052,1762020647655,-151.0,0.00038135,31]
[392835053,1762020647664,-151.0,0.00038135,31]
[392835054,1762020647673,-151.0,0.00038135,31]
[392835055,1762020647682,-500.0,0.00038135,5]
[392835056,1762020647691,-151.0,0.00038135,5]
[392835057,1762020647703,-707940.40799828,0.00038135,20]
[392835215,1762021411824,-2313.069283,0.00038119,120]
[392835216,1762021411848,-3072.06708647,0.00038119,120]
[392835217,1762021411871,-235.74125435,0.00038119,120]
[392835253,1762021686078,421.56476089,0.00010618,2]
[392835254,1762021687844,6007.28983034,0.000125,2]
[392835258,1762021705968,3281.62256045,0.00017,2]
[392835259,1762021705993,10000.01,0.00017,2]
[392835260,1762021706015,6718.38743955,0.00017,2]
[392835261,1762021707284,300.0,0.000137,2]
[392835262,1762021707438,561.80085773,0.00018,5]
[392835263,1762021710152,589.73709658,0.000149,2]
[392835264,1762021710282,1000.0,0.0001,2]
[392835265,1762021717970,300.0,0.000137,2]
[392835266,1762021718508,526.7736983,0.00018,5]
[392835269,1762021728344,300.0,0.000137,2]
[392835270,1762021738559,300.0,0.000137,2]
[392835275,1762021749768,300.0,0.000137,2]
[392835281,1762021766710,300.0,0.000137,2]
[392835290,1762021822383,302.54622906,0.000189,2]
[392835291,1762021822449,302.54622906,0.00019089,2]
[392835292,1762021822508,453.50227249,0.00019278,2]
[392835307,1762021831690,422.66322774,0.00024999,2]
[392835308,1762021831716,500.0,0.00024999,2]
[392835309,1762021831745,500.0,0.00024999,2]
[392835310,1762021831772,500.0,0.00024999,2]
[392835312,1762021831802,500.0,0.00024999,2]
[392835314,1762021831814,-13229.71022563,0.00025,2]
[392835315,1762021831863,500.0,0.00024999,2]
[392835316,1762021832019,500.0,0.00024999,2]
[392835317,1762021832049,500.0,0.00024999,2]
[392835318,1762021832077,206.05975585,0.00024999,2]
[392835319,1762021832104,500.0,0.00024999,2]
[392835325,1762021837537,-30723.19293813,0.00025,2]
[392835326,1762021837547,-462.0,0.00025,2]
[392835328,1762021837557,-150.0,0.00025291,2]
[392835330,1762021837566,-497.3969286,0.00026837,2]
[392835331,1762021837579,-1989.58771439,0.00026837,2]
[392835332,1762021837588,-177.0,0.00027291,2]
[392835333,1762021837597,-204.0,0.00029291,2]
[392835334,1762021837606,-3199.11587218,0.00029421,2]
[392835335,1762021837615,-261.58203642,0.0003,2]
[392835336,1762021837625,-333.909459,0.00030669,2]
[392835337,1762021837635,-231.0,0.00031291,2]
[392835338,1762021837644,-203.27016998,0.00032774,2]
[392835339,1762021837654,-384.6099113,0.00032881,2]
[392835340,1762021837663,-692.29784034,0.00032881,2]
[392835341,1762021837672,-1230.75171616,0.00032881,2]
[392835342,1762021837682,-1921.12650694,0.00032881,2]
[392835343,1762021837691,-258.0,0.00033291,120]
[392835344,1762021837701,-2997.57349346,0.000333,2]
[392835345,1762021837711,-5069.6289559,0.00034322,2]
[392835346,1762021837720,-385.61876429,0.00034544,2]
[392835347,1762021837731,-151.0,0.0003459,2]
[392835348,1762021837741,-151.0,0.0003459,2]
[392835349,1762021837750,-151.0,0.0003459,2]
[392835350,1762021837760,-151.0,0.0003459,2]
[392835351,1762021837769,-151.0,0.0003459,2]
[392835352,1762021837779,-151.0,0.0003459,2]
[392835353,1762021837788,-151.0,0.0003459,2]
[392835354,1762021837798,-151.0,0.0003459,2]
[392835355,1762021837808,-151.0,0.0003459,2]
[392835356,1762021837818,-151.0,0.0003459,2]
[392835357,1762021837828,-151.0,0.0003459,2]
[392835358,1762021837837,-151.0,0.0003459,2]
[392835359,1762021837847,-151.0,0.0003459,2]
[392835360,1762021837856,-151.0,0.0003459,2]
[392835361,1762021837865,-151.0,0.0003459,2]
[392835362,1762021837875,-151.0,0.0003459,2]
[392835363,1762021837884,-151.0,0.0003459,2]
[392835364,1762021837894,-151.0,0.0003459,2]
[392835365,1762021837903,-151.0,0.0003459,2]
[392835366,1762021837913,-151.0,0.0003459,2]
[392835367,1762021837922,-553.91109724,0.00034611,2]
[392835368,1762021837932,-997.03997503,0.00034611,2]
[392835369,1762021837940,-2766.78593069,0.00034611,2]
[392835370,1762021837950,-188.0,0.00035008,120]
[392835371,1762021837959,-285.0,0.00035291,120]
[392835372,1762021837969,-365.88630596,0.00036254,2]
[392835373,1762021837978,-157.75282,0.00036929,20]
[392835374,1762021837987,-157.75282,0.00036946,15]
[392835375,1762021837996,-207.99073681,0.00036983,2]
[392835376,1762021838006,-157.75282,0.0003724,31]
[392835377,1762021838015,-312.0,0.00037291,120]
[392835378,1762021838025,-500.0,0.00037349,3]
[392835379,1762021838035,-157.75282,0.0003737,20]
[392835380,1762021838046,-152.69165701,0.00037448,2]
[392835381,1762021838056,-179.07412105,0.00037516,3]
[392835382,1762021838065,-2162.0,0.00037583,2]
[392835383,1762021838075,-412.0,0.00037583,2]
[392835384,1762021838084,-1646.230704,0.00037684,2]
[392835385,1762021838094,-748.92668497,0.00037777,40]
[392835386,1762021838104,-411.13559186,0.00037888,8]
[392835387,1762021838114,-403.98447456,0.00037938,2]
[392835388,1762021838125,-2035.71626236,0.00037968,2]
[392835389,1762021838134,-1202.53868181,0.00038015,2]
[392835390,1762021838144,-8696.7823635,0.00038019,2]
[392835391,1762021838154,-299.0326097,0.00038019,2]
[392835392,1762021838164,-350.42111151,0.00038019,2]
[392835393,1762021838175,-1621.22,0.00038026,10]
[392835394,1762021838185,-500.0,0.00038036,8]
[392835395,1762021838195,-476.78020058,0.00038036,2]
[392835396,1762021838204,-858.20436104,0.00038036,2]
[392835397,1762021838214,-1524.17094521,0.00038036,2]
[392835398,1762021838223,-156.57830342,0.00038036,2]
[392835399,1762021838233,-170.69321899,0.00038036,2]
[392835400,1762021838243,-307.24779419,0.00038036,2]
[392835401,1762021838253,-546.21830078,0.00038036,2]
[392835402,1762021838263,-500.0,0.00038036,8]
[392835403,1762021838272,-500.0,0.00038036,8]
[392835404,1762021838282,-279.459193,0.0003806,2]
[392835405,1762021838292,-503.02654739,0.0003806,2]
[392835406,1762021838302,-893.37514817,0.0003806,2]
[392835407,1762021838312,-187.47120437,0.0003806,2]
[392835408,1762021838322,-337.11071969,0.0003806,2]
[392835409,1762021838331,-163.99805308,0.0003806,2]
[392835410,1762021838341,-295.19649555,0.0003806,2]
[392835411,1762021838351,-524.79376987,0.0003806,2]
[392835412,1762021838361,-151.0,0.000381,12]
[392835413,1762021838371,-151.0,0.000381,13]
[392835414,1762021838380,-151.0,0.000381,13]
[392835415,1762021838390,-165.7,0.000381,2]
[392835416,1762021838400,-546.55,0.00038109,3]
[392835417,1762021838410,-273.28,0.00038109,3]
[392835418,1762021838419,-819.85,0.00038109,3]
[392835419,1762021838429,-150.5,0.00038109,120]
[392835420,1762021838439,-467.33997287,0.00038118,2]
[392835421,1762021838448,-375842.18316384,0.00038119,20]
[392835422,1762021838461,-3414.39036332,0.00038119,20]
[392835423,1762021838472,-611.14832869,0.00038119,20]
[392835424,1762021838484,-2890240.82491579,0.00038119,20]
[392835425,1762021838494,-160.0,0.00038119,3]
[392835426,1762021838508,-194.0,0.00038119,2]
[392835427,1762021838519,-882.08678253,0.00038131,3]
[392835428,1762021838528,-517.02495217,0.00038131,3]
[392835429,1762021838538,-166.0554751,0.00038131,3]
[392835430,1762021838549,-309.59296909,0.00038131,3]
[392835431,1762021838559,-302.90939946,0.00038131,3]
[392835432,1762021838569,-322.23199897,0.00038131,3]
[392835433,1762021838579,-166.0,0.00038134,14]
[392835434,1762021838590,-206.50160604,0.00038134,14]
[392835435,1762021838600,-3268.432112,0.00038135,2]
[392835436,1762021838610,-166.0,0.00038135,14]
[392835437,1762021838620,-8560.659811,0.00038135,2]
[392835438,1762021838630,-151.0,0.00038135,5]
[392835439,1762021838639,-151.0,0.00038135,5]
[392835440,1762021838649,-500.0,0.00038135,5]
[392835441,1762021838659,-500.0,0.00038138,8]
[392835442,1762021838668,-202.75805087,0.00038138,8]
[392835443,1762021838677,-500.0,0.00038138,8]
[392835444,1762021838687,-504.96824996,0.00038138,8]
[392835445,1762021838696,-500.0,0.00038138,8]
[392835446,1762021838706,-500.0,0.00038138,8]
[392835447,1762021838715,-500.0,0.00038138,8]
[392835448,1762021838725,-500.0,0.00038138,8]
[392835449,1762021838735,-500.0,0.00038138,8]
[392835450,1762021838744,-233.7062599,0.00038138,8]
[392835451,1762021838754,-151.0,0.0003819,5]
[392835452,1762021838763,-151.0,0.0003819,5]
[392835453,1762021838773,-500.0,0.0003819,5]
[392835454,1762021838783,-305.29,0.000382,30]
[392835455,1762021838793,-627.7,0.000382,14]
[392835456,1762021838802,-2320.77,0.000382,14]
[392835457,1762021838812,-151.0,0.00038245,5]
[392835458,1762021838821,-151.0,0.00038245,5]
[392835459,1762021838831,-500.0,0.00038245,5]
[392835460,1762021838840,-150.0,0.00038245,2]
[392835461,1762021838850,-226.89652407,0.00038299,5]
[392835462,1762021838859,-217.0,0.00038299,5]
[392835463,1762021838868,-500.0,0.00038299,5]
[392835464,1762021838878,-500.0,0.00038354,5]
[392835465,1762021838887,-500.0,0.00038409,5]
[392835466,1762021838896,-160.0,0.00038463,5]
[392835467,1762021838906,-500.0,0.00038464,5]
[392835468,1762021838915,-289.85450246,0.00038519,5]
[392835469,1762021838925,-188.0,0.00038747,120]
[392835470,1762021838934,-2276.12069942,0.0003898,3]
[392835471,1762021838944,-12846.57494752,0.0003899,2]
[392835472,1762021838954,-189.0,0.00039178,120]
[392835473,1762021838963,-160.0,0.0003918,3]
[392835474,1762021838972,-5000.0,0.00039215,4]
[392835475,1762021838982,-339.0,0.00039291,120]
[392835476,1762021838991,-1093.1,0.00039479,3]
[392835477,1762021839001,-546.56,0.00039479,3]
[392835478,1762021839010,-481.061093,0.00039654,2]
[392835479,1762021839020,-153.0,0.000397,120]
[392835480,1762021839030,-462.56739446,0.00039726,2]
[392835481,1762021839040,-510.05416849,0.00039859,2]
[392835482,1762021839053,-2108.42746914,0.0004,2]
[392835483,1762021839062,-499.0,0.00040025,7]
[392835484,1762021839072,-496.0,0.00040507,2]
[392835485,1762021839081,-412.0,0.00040583,2]
[392835486,1762021839091,-496.0,0.00040641,120]
[392835487,1762021839100,-188.0,0.00040685,120]
[392835488,1762021839109,-499.0,0.00040866,2]
[392835489,1762021839118,-402.86138024,0.00041095,2]
[392835490,1762021839128,-204.45,0.000411,120]
[392835491,1762021839137,-203.67,0.000411,120]
[392835492,1762021839147,-496.0,0.00041172,7]
[392835493,1762021839156,-496.0,0.00041223,2]
[392835494,1762021839165,-150.0,0.00041245,2]
[392835495,1762021839175,-496.0,0.00041282,2]
[392835496,1762021839184,-366.0,0.00041291,120]
[392835497,1762021839193,-496.0,0.00041444,2]
[392835498,1762021839203,-496.0,0.00041451,2]
[392835499,1762021839212,-496.0,0.00041467,2]
[392835500,1762021839222,-627.7,0.000415,14]
[392835501,1762021839231,-2320.77,0.000415,14]
[392835502,1762021839240,-496.0,0.00041579,7]
[392835503,1762021839250,-496.0,0.0004172,2]
[392835504,1762021839259,-496.0,0.00041755,2]
[392835505,1762021839268,-496.0,0.00041913,2]
[392835506,1762021839278,-153.0,0.00042,120]
[392835507,1762021839287,-496.0,0.00042038,2]
[392835508,1762021839297,-496.0,0.0004229,2]
[392835510,1762021839306,-496.0,0.00042357,120]
[392835511,1762021839315,-496.0,0.00042404,2]
[392835512,1762021839324,-496.0,0.00042478,2]
[392835513,1762021839334,-496.0,0.00042485,2]
[392835514,1762021839344,-496.0,0.00042501,2]
[392835515,1762021839354,-496.0,0.00042788,2]
[392835516,1762021839364,-305.29,0.000428,30]
[392835517,1762021839374,-201.0,0.000428,61]
[392835518,1762021839384,-500.61810514,0.00042827,10]
[392835519,1762021839394,-503.93677955,0.00042827,4]
[392835520,1762021839403,-500.36205134,0.00042827,10]
[392835521,1762021839414,-180.0,0.00042827,2]
[392835522,1762021839424,-501.20845541,0.00042827,10]
[392835523,1762021839435,-159.12069995,0.00042829,10]
[392835524,1762021839444,-502.56887421,0.00042829,10]
[392835525,1762021839455,-500.47076992,0.00042829,10]
[392835526,1762021839465,-500.55358996,0.00042837,2]
[392835527,1762021839475,-500.0,0.00042837,7]
[392835528,1762021839484,-383.74682695,0.00042837,10]
[392835529,1762021839494,-503.00660268,0.00042837,10]
[392835530,1762021839506,-300.96443629,0.00042837,10]
[392835531,1762021839515,-500.68021792,0.00042837,10]
[392835532,1762021839525,-496.0,0.00042868,7]
[392835533,1762021839534,-520.67360796,0.00042876,10]
[392835534,1762021839544,-496.0,0.00042883,2]
[392835535,1762021839554,-496.0,0.00042887,7]
[392835536,1762021839563,-2276.12069942,0.00042985,3]
[392835537,1762021839573,-1910.1413946,0.00042995,2]
[392835538,1762021839583,-8548.50273514,0.00043,50]
[392835540,1762021839593,-393.0,0.00043291,120]
[392835541,1762021839602,-20485.0862948,0.00043434,3]
[392835542,1762021839611,-86465.56217062,0.00043444,30]
[392835543,1762021839881,-3422.93992546,0.00043444,30]
[392835554,1762021842753,-1351.02,0.00043434,10]
[392835555,1762021842762,-340928.37130392,0.00043444,30]
[392835556,1762021842772,-412.0,0.00043583,2]
[392835557,1762021842781,-600.0,0.00043617,2]
[392835558,1762021842871,-500.0,0.00043835,120]
[392835559,1762021842881,-400.0,0.0004399,120]
[392835560,1762021842890,-156.0,0.00044,90]
[392835561,1762021842899,-500.0,0.00044034,120]
[392835562,1762021842909,-211.27,0.00044034,120]
[392835563,1762021842918,-213546.90248011,0.00044055,2]
[392835575,1762021845913,-25014.7285703,0.00044055,2]
[392835588,1762021985963,380.753085,0.00013699,2]
[392835589,1762021986212,315.42840592,0.00020187,2]
[392835590,1762021986234,65.32467908,0.00020187,2]
[392835617,1762022245010,169.05907,0.00018444,2]
[392835618,1762022280048,274.05,0.00016244,120]
[392835699,1762022726102,200.0,0.00032,120]
[392835705,1762022743406,200.0,0.000324,120]
[392835711,1762022765743,200.0,0.000324,120]
[392835825,1762023037811,-150.0,0.00025547,2]
[392835827,1762023037821,-380.753085,0.00026676,2]
[392835829,1762023037830,-53.54482123,0.00027547,2]
[392835938,1762023042952,-123.45517877,0.00027547,2]
[392835939,1762023042963,-204.0,0.00029547,2]
[392835940,1762023042973,-231.0,0.00031547,2]
[392835941,1762023042983,-162.507608,0.00032509,20]
[392835942,1762023042993,-3058.54,0.00032877,60]
[392835943,1762023043003,-380.753085,0.00033165,2]
[392835944,1762023043013,-258.0,0.00033547,120]
[392835945,1762023043023,-400.0,0.00035546,2]
[392835946,1762023043033,-3585.45920733,0.00035547,2]
[392835947,1762023043047,-285.0,0.00035547,120]
[392835948,1762023043059,-312.0,0.00037548,120]
[392835949,1762023043071,-151.0,0.00037752,2]
[392835950,1762023043083,-151.0,0.00037752,2]
[392835951,1762023043092,-151.0,0.00037752,2]
[392835952,1762023043103,-151.0,0.00037752,2]
[392835953,1762023043113,-151.0,0.00037752,2]
[392835954,1762023043126,-151.0,0.00037752,2]
[392835955,1762023043136,-151.0,0.00037752,2]
[392835956,1762023043147,-151.0,0.00037752,2]
[392835957,1762023043158,-151.0,0.00037752,2]
[392835958,1762023043169,-151.0,0.00037752,2]
[392835959,1762023043180,-151.0,0.00037752,2]
[392835960,1762023043191,-151.0,0.00037752,2]
[392835961,1762023043201,-151.0,0.00037752,2]
[392835962,1762023043212,-151.0,0.00037752,2]
[392835963,1762023043223,-151.0,0.00037752,2]
[392835964,1762023043234,-151.0,0.00037752,2]
[392835965,1762023043244,-151.0,0.00037752,2]
[392835966,1762023043255,-151.0,0.00037752,2]
[392835967,1762023043264,-151.0,0.00037752,2]
[392835968,1762023043275,-151.0,0.00037752,2]
[392835969,1762023043285,-2841.9898085,0.00037775,2]